[Event "Sverigemastarklassen 2025"]
[Site "Uppsala, Sweden"]
[Date "2025.07.06"]
[Round "9.1"]
[White "Storme, Isak"]
[Black "Falkevall, Axel"]
[Result "1-0"]
[TimeControl "90 min for 40 move + 30 min with an increment of 30 sec starting move 1"]
[WhiteTitle "IM"]
[BlackTitle "FM"]
[WhiteFideId "1728113"]
[BlackFideId "1735560"]
[WhiteElo "2466"]
[BlackElo "2372"]

1. d4 {[%clk 01:30:55]} {[%emt 00:00:04]} Nf6 {[%clk 01:30:55]} {[%emt
00:00:05]} 2. c4 {[%clk 01:31:20]} {[%emt 00:00:06]} g6 {[%clk 01:31:08]}
{[%emt 00:00:17]} 3. Nf3 {[%clk 01:31:28]} {[%emt 00:00:21]} Bg7 {[%clk
01:31:33]} {[%emt 00:00:06]} 4. g3 {[%clk 01:31:46]} {[%emt 00:00:12]} O-O
{[%clk 01:31:56]} {[%emt 00:00:07]} 5. Bg2 {[%clk 01:32:11]} {[%emt 00:00:04]}
d6 {[%clk 01:32:23]} {[%emt 00:00:03]} 6. O-O {[%clk 01:32:31]} {[%emt
00:00:10]} c5 {[%clk 01:32:50]} {[%emt 00:00:04]} 7. dxc5 {[%clk 01:30:33]}
{[%emt 00:02:27]} dxc5 {[%clk 01:32:47]} {[%emt 00:00:34]} 8. Nc3 {[%clk
01:30:52]} {[%emt 00:00:11]} Nc6 {[%clk 01:33:12]} {[%emt 00:00:05]} 9. Be3
{[%clk 01:27:36]} {[%emt 00:03:44]} Be6 {[%clk 01:33:09]} {[%emt 00:00:34]} 10.
Qa4 {[%clk 01:23:57]} {[%emt 00:04:10]} Nd4 {[%clk 01:31:04]} {[%emt 00:02:35]}
11. Rad1 {[%clk 01:16:36]} {[%emt 00:07:50]} Bd7 {[%clk 01:29:56]} {[%emt
00:01:37]} 12. Qa3 {[%clk 01:16:52]} {[%emt 00:00:15]} Nc2 {[%clk 01:30:06]}
{[%emt 00:00:21]} 13. Qxc5 {[%clk 01:14:31]} {[%emt 00:02:51]} b6 {[%clk
01:29:56]} {[%emt 00:00:39]} 14. Qg5 {[%clk 01:08:18]} {[%emt 00:06:43]} h6
{[%clk 01:29:49]} {[%emt 00:00:37]} 15. Qf4 {[%clk 01:06:48]} {[%emt 00:02:00]}
g5 {[%clk 01:29:52]} {[%emt 00:00:27]} 16. Qe5 {[%clk 01:06:09]} {[%emt
00:01:08]} Rc8 {[%clk 01:30:13]} {[%emt 00:00:10]} 17. Nd5 {[%clk 01:03:02]}
{[%emt 00:03:37]} Nxd5 {[%clk 01:22:00]} {[%emt 00:08:44]} 18. Qxd5 {[%clk
01:03:05]} {[%emt 00:00:26]} Nxe3 {[%clk 01:22:20]} {[%emt 00:00:11]} 19. fxe3
{[%clk 01:03:28]} {[%emt 00:00:07]} Bc6 {[%clk 01:12:29]} {[%emt 00:10:21]} 20.
Qxd8 {[%clk 01:01:08]} {[%emt 00:02:50]} Rfxd8 {[%clk 01:12:49]} {[%emt
00:00:10]} 21. b3 {[%clk 01:00:52]} {[%emt 00:00:45]} b5 {[%clk 01:10:00]}
{[%emt 00:03:19]} 22. Rxd8+ {[%clk 00:46:37]} {[%emt 00:14:46]} Rxd8 {[%clk
01:10:21]} {[%emt 00:00:09]} 23. c5 {[%clk 00:44:55]} {[%emt 00:02:11]} e5
{[%clk 00:59:15]} {[%emt 00:11:37]} 24. b4 {[%clk 00:30:15]} {[%emt 00:15:10]}
e4 {[%clk 00:49:07]} {[%emt 00:10:37]} 25. Nd4 {[%clk 00:28:17]} {[%emt
00:02:29]} Bxd4 {[%clk 00:49:06]} {[%emt 00:00:32]} 26. exd4 {[%clk 00:28:40]}
{[%emt 00:00:06]} Rxd4 {[%clk 00:49:20]} {[%emt 00:00:16]} 27. a3 {[%clk
00:20:17]} {[%emt 00:08:53]} Kg7 {[%clk 00:46:26]} {[%emt 00:03:23]} 28. Kf2
{[%clk 00:19:34]} {[%emt 00:01:13]} Rc4 {[%clk 00:38:01]} {[%emt 00:08:55]} 29.
Ke3 {[%clk 00:19:20]} {[%emt 00:00:43]} a5 {[%clk 00:33:37]} {[%emt 00:04:55]}
30. Rd1 {[%clk 00:16:12]} {[%emt 00:03:39]} Rc3+ {[%clk 00:32:07]} {[%emt
00:02:00]} 31. Kd4 {[%clk 00:16:06]} {[%emt 00:00:34]} Rxa3 {[%clk 00:32:20]}
{[%emt 00:00:18]} 32. Bxe4 {[%clk 00:11:55]} {[%emt 00:04:41]} Bxe4 {[%clk
00:32:17]} {[%emt 00:00:34]} 33. Kxe4 {[%clk 00:12:23]} {[%emt 00:00:02]} Kf6
{[%clk 00:18:45]} {[%emt 00:14:02]} 34. Kd5 {[%clk 00:12:26]} {[%emt 00:00:26]}
axb4 {[%clk 00:14:17]} {[%emt 00:04:58]} 35. c6 {[%clk 00:10:40]} {[%emt
00:02:16]} Ke7 {[%clk 00:13:41]} {[%emt 00:01:07]} 36. Kc5 {[%clk 00:11:00]}
{[%emt 00:00:08]} Rc3+ {[%clk 00:08:27]} {[%emt 00:05:45]} 37. Kb6 {[%clk
00:11:24]} {[%emt 00:00:06]} b3 {[%clk 00:08:36]} {[%emt 00:00:21]} 38. Kb7
{[%clk 00:11:23]} {[%emt 00:00:32]} b2 {[%clk 00:08:27]} {[%emt 00:00:38]} 39.
Rb1 {[%clk 00:10:31]} {[%emt 00:01:22]} Kd6 {[%clk 00:07:07]} {[%emt 00:01:50]}
40. Rxb2 {[%clk 00:10:42]} {[%emt 00:00:19]} 1-0

[Event "Sverigemastarklassen 2025"]
[Site "Uppsala, Sweden"]
[Date "2025.07.06"]
[Round "9.2"]
[White "Blomqvist, Erik"]
[Black "Hillarp-Persson, Tiger"]
[Result "1-0"]
[TimeControl "90 min for 40 move + 30 min with an increment of 30 sec starting move 1"]
[WhiteTitle "GM"]
[BlackTitle "GM"]
[WhiteFideId "1709437"]
[BlackFideId "1700812"]
[WhiteElo "2448"]
[BlackElo "2445"]

1. e4 {[%clk 01:30:52]} {[%emt 00:00:06]} c5 {[%clk 01:30:47]} {[%emt
00:00:14]} 2. Nf3 {[%clk 01:31:13]} {[%emt 00:00:08]} d6 {[%clk 01:31:12]}
{[%emt 00:00:06]} 3. d4 {[%clk 01:31:37]} {[%emt 00:00:06]} cxd4 {[%clk
01:31:36]} {[%emt 00:00:06]} 4. Nxd4 {[%clk 01:32:01]} {[%emt 00:00:06]} Nf6
{[%clk 01:32:00]} {[%emt 00:00:06]} 5. Nc3 {[%clk 01:32:26]} {[%emt 00:00:05]}
Nc6 {[%clk 01:32:24]} {[%emt 00:00:06]} 6. Bg5 {[%clk 01:26:46]} {[%emt
00:06:10]} e6 {[%clk 01:30:33]} {[%emt 00:02:21]} 7. Qd2 {[%clk 01:27:01]}
{[%emt 00:00:15]} a6 {[%clk 01:30:45]} {[%emt 00:00:18]} 8. O-O-O {[%clk
01:27:23]} {[%emt 00:00:07]} Bd7 {[%clk 01:31:06]} {[%emt 00:00:10]} 9. Kb1
{[%clk 01:27:04]} {[%emt 00:00:49]} Nxd4 {[%clk 01:31:22]} {[%emt 00:00:15]} 10.
Qxd4 {[%clk 01:27:28]} {[%emt 00:00:05]} Be7 {[%clk 01:30:37]} {[%emt
00:01:15]} 11. h4 {[%clk 01:26:32]} {[%emt 00:01:26]} Qc7 {[%clk 01:26:08]}
{[%emt 00:04:59]} 12. f3 {[%clk 01:23:51]} {[%emt 00:03:10]} b5 {[%clk
01:20:30]} {[%emt 00:06:08]} 13. Qd2 {[%clk 01:23:46]} {[%emt 00:00:36]} b4
{[%clk 01:17:16]} {[%emt 00:03:44]} 14. Ne2 {[%clk 01:24:11]} {[%emt 00:00:05]}
a5 {[%clk 01:16:45]} {[%emt 00:01:01]} 15. c4 {[%clk 01:24:10]} {[%emt
00:00:30]} a4 {[%clk 00:58:47]} {[%emt 00:18:28]} 16. Nd4 {[%clk 01:15:01]}
{[%emt 00:09:39]} O-O {[%clk 00:58:53]} {[%emt 00:00:25]} 17. g4 {[%clk
01:08:46]} {[%emt 00:06:45]} Rfc8 {[%clk 00:50:11]} {[%emt 00:09:13]} 18. Bd3
{[%clk 01:06:40]} {[%emt 00:02:36]} d5 {[%clk 00:33:13]} {[%emt 00:17:28]} 19.
cxd5 {[%clk 00:50:47]} {[%emt 00:16:23]} Qb6 {[%clk 00:32:58]} {[%emt
00:00:44]} 20. dxe6 {[%clk 00:34:26]} {[%emt 00:16:51]} Bxe6 {[%clk 00:21:23]}
{[%emt 00:12:06]} 21. Nxe6 {[%clk 00:33:47]} {[%emt 00:01:09]} Qxe6 {[%clk
00:21:12]} {[%emt 00:00:41]} 22. Rc1 {[%clk 00:29:30]} {[%emt 00:04:47]} Nd7
{[%clk 00:19:27]} {[%emt 00:02:15]} 23. Rxc8+ {[%clk 00:28:34]} {[%emt
00:01:26]} Rxc8 {[%clk 00:19:51]} {[%emt 00:00:06]} 24. Rc1 {[%clk 00:28:50]}
{[%emt 00:00:15]} Rxc1+ {[%clk 00:19:07]} {[%emt 00:01:14]} 25. Qxc1 {[%clk
00:28:56]} {[%emt 00:00:24]} Ne5 {[%clk 00:12:00]} {[%emt 00:07:37]} 26. Be2
{[%clk 00:27:16]} {[%emt 00:02:09]} h6 {[%clk 00:09:44]} {[%emt 00:02:46]} 27.
Bd2 {[%clk 00:23:53]} {[%emt 00:03:53]} a3 {[%clk 00:07:28]} {[%emt 00:02:47]}
28. Qc2 {[%clk 00:21:58]} {[%emt 00:02:25]} Qb6 {[%clk 00:05:27]} {[%emt
00:02:31]} 29. h5 {[%clk 00:11:38]} {[%emt 00:10:50]} Qf2 {[%clk 00:02:37]}
{[%emt 00:03:20]} 30. Qd1 {[%clk 00:11:51]} {[%emt 00:00:16]} axb2 {[%clk
00:01:12]} {[%emt 00:01:56]} 31. f4 {[%clk 00:10:02]} {[%emt 00:02:19]} Nd7
{[%clk 00:00:47]} {[%emt 00:00:55]} 32. Bd3 {[%clk 00:01:37]} {[%emt 00:08:55]}
Nc5 {[%clk 00:00:36]} {[%emt 00:00:41]} 33. Bc2 {[%clk 00:01:57]} {[%emt
00:00:10]} Qd4 {[%clk 00:00:42]} {[%emt 00:00:24]} 34. Qe2 {[%clk 00:00:59]}
{[%emt 00:01:28]} Ne6 {[%clk 00:00:41]} {[%emt 00:00:31]} 35. Qd3 {[%clk
00:00:46]} {[%emt 00:00:43]} Qg1+ {[%clk 00:00:54]} {[%emt 00:00:17]} 36. Kxb2
{[%clk 00:01:06]} {[%emt 00:00:10]} Nc5 {[%clk 00:00:40]} {[%emt 00:00:44]} 37.
Qc4 {[%clk 00:00:41]} {[%emt 00:00:54]} b3 {[%clk 00:00:35]} {[%emt 00:00:36]}
38. axb3 {[%clk 00:00:53]} {[%emt 00:00:18]} Qxg4 {[%clk 00:00:34]} {[%emt
00:00:30]} 39. Qd5 {[%clk 00:00:36]} {[%emt 00:00:48]} Qe2 {[%clk 00:00:36]}
{[%emt 00:00:28]} 40. Bc3 {[%clk 00:00:35]} {[%emt 00:00:31]} Ne6 {[%clk
00:00:36]} {[%emt 00:00:30]} 41. Qa8+ {[%clk 00:24:23]} {[%emt 00:06:42]} Bf8
{[%clk 00:27:31]} {[%emt 00:03:35]} 42. f5 {[%clk 00:23:46]} {[%emt 00:01:07]}
Nf4 {[%clk 00:27:42]} {[%emt 00:00:19]} 43. Qd8 {[%clk 00:23:30]} {[%emt
00:00:45]} f6 {[%clk 00:26:51]} {[%emt 00:01:22]} 44. Bd2 {[%clk 00:17:31]}
{[%emt 00:06:29]} Qf1 {[%clk 00:18:21]} {[%emt 00:09:00]} 45. Bb4 {[%clk
00:15:19]} {[%emt 00:02:40]} 1-0

[Event "Sverigemastarklassen 2025"]
[Site "Uppsala, Sweden"]
[Date "2025.07.06"]
[Round "9.3"]
[White "Pantzar, Milton"]
[Black "Sorensen, Hampus"]
[Result "1/2-1/2"]
[TimeControl "90 min for 40 move + 30 min with an increment of 30 sec starting move 1"]
[WhiteTitle "IM"]
[BlackTitle "IM"]
[WhiteFideId "1721003"]
[BlackFideId "8703884"]
[WhiteElo "2450"]
[BlackElo "2432"]

1. Nf3 {[%clk 01:30:53]} {[%emt 00:00:07]} d5 {[%clk 01:29:14]} {[%emt
00:01:46]} 2. b3 {[%clk 01:31:05]} {[%emt 00:00:19]} Bf5 {[%clk 01:23:47]}
{[%emt 00:05:56]} 3. Bb2 {[%clk 01:31:13]} {[%emt 00:00:22]} e6 {[%clk
01:24:08]} {[%emt 00:00:09]} 4. d3 {[%clk 01:30:30]} {[%emt 00:01:14]} h6
{[%clk 01:23:03]} {[%emt 00:01:35]} 5. g3 {[%clk 01:29:49]} {[%emt 00:01:11]}
Nf6 {[%clk 01:22:54]} {[%emt 00:00:38]} 6. Bg2 {[%clk 01:30:05]} {[%emt
00:00:14]} Be7 {[%clk 01:22:44]} {[%emt 00:00:40]} 7. O-O {[%clk 01:30:22]}
{[%emt 00:00:13]} O-O {[%clk 01:21:42]} {[%emt 00:01:31]} 8. Nbd2 {[%clk
01:30:02]} {[%emt 00:00:51]} Bh7 {[%clk 01:20:14]} {[%emt 00:01:58]} 9. Re1
{[%clk 01:25:09]} {[%emt 00:05:23]} a5 {[%clk 01:19:39]} {[%emt 00:01:06]} 10.
a3 {[%clk 01:23:42]} {[%emt 00:01:57]} c5 {[%clk 01:03:34]} {[%emt 00:16:34]}
11. e4 {[%clk 01:07:13]} {[%emt 00:16:59]} Nc6 {[%clk 00:56:45]} {[%emt
00:07:20]} 12. exd5 {[%clk 01:03:51]} {[%emt 00:03:52]} exd5 {[%clk 00:55:16]}
{[%emt 00:01:59]} 13. Ne5 {[%clk 01:00:24]} {[%emt 00:03:56]} a4 {[%clk
00:50:02]} {[%emt 00:05:44]} 14. bxa4 {[%clk 00:57:12]} {[%emt 00:03:42]} Bf5
{[%clk 00:45:10]} {[%emt 00:05:21]} 15. c4 {[%clk 00:52:10]} {[%emt 00:05:33]}
Nxe5 {[%clk 00:39:39]} {[%emt 00:06:01]} 16. Rxe5 {[%clk 00:47:05]} {[%emt
00:05:35]} Bg4 {[%clk 00:36:01]} {[%emt 00:04:08]} 17. Qc2 {[%clk 00:41:23]}
{[%emt 00:06:12]} d4 {[%clk 00:32:21]} {[%emt 00:04:10]} 18. Bxb7 {[%clk
00:38:41]} {[%emt 00:03:12]} Ra7 {[%clk 00:31:45]} {[%emt 00:01:06]} 19. Bg2
{[%clk 00:38:14]} {[%emt 00:00:56]} Bd7 {[%clk 00:29:10]} {[%emt 00:03:07]} 20.
a5 {[%clk 00:27:09]} {[%emt 00:11:34]} Bd6 {[%clk 00:29:00]} {[%emt 00:00:40]}
21. Ree1 {[%clk 00:27:02]} {[%emt 00:00:38]} Qxa5 {[%clk 00:26:57]} {[%emt
00:02:32]} 22. Ne4 {[%clk 00:26:16]} {[%emt 00:01:15]} Nxe4 {[%clk 00:26:58]}
{[%emt 00:00:29]} 23. Bxe4 {[%clk 00:25:27]} {[%emt 00:01:20]} Re8 {[%clk
00:25:46]} {[%emt 00:01:43]} 24. Re2 {[%clk 00:23:07]} {[%emt 00:02:50]} Ba4
{[%clk 00:24:45]} {[%emt 00:01:30]} 25. Qd2 {[%clk 00:21:50]} {[%emt 00:01:47]}
Qxd2 {[%clk 00:20:22]} {[%emt 00:04:53]} 26. Rxd2 {[%clk 00:22:15]} {[%emt
00:00:05]} Bc7 {[%clk 00:20:24]} {[%emt 00:00:29]} 27. f4 {[%clk 00:13:22]}
{[%emt 00:09:22]} Ba5 {[%clk 00:18:57]} {[%emt 00:01:57]} 28. Rf2 {[%clk
00:13:24]} {[%emt 00:00:29]} Rb8 {[%clk 00:13:02]} {[%emt 00:06:24]} 29. Raf1
{[%clk 00:12:44]} {[%emt 00:01:10]} Re7 {[%clk 00:09:53]} {[%emt 00:03:39]} 30.
f5 {[%clk 00:09:45]} {[%emt 00:03:29]} f6 {[%clk 00:08:58]} {[%emt 00:01:26]}
31. Bc1 {[%clk 00:08:26]} {[%emt 00:01:49]} Bc7 {[%clk 00:08:35]} {[%emt
00:00:53]} 32. Rb2 {[%clk 00:06:52]} {[%emt 00:02:03]} Rxb2 {[%clk 00:07:57]}
{[%emt 00:01:08]} 33. Bxb2 {[%clk 00:07:20]} {[%emt 00:00:02]} Re8 {[%clk
00:07:23]} {[%emt 00:01:03]} 34. Bc1 {[%clk 00:05:13]} {[%emt 00:02:38]} Rb8
{[%clk 00:07:34]} {[%emt 00:00:18]} 35. g4 {[%clk 00:04:02]} {[%emt 00:01:42]}
Rb1 {[%clk 00:04:22]} {[%emt 00:03:43]} 36. h4 {[%clk 00:03:46]} {[%emt
00:00:45]} Bc2 {[%clk 00:01:37]} {[%emt 00:03:15]} 37. g5 {[%clk 00:03:45]}
{[%emt 00:00:30]} hxg5 {[%clk 00:02:06]} {[%emt 00:00:02]} 38. hxg5 {[%clk
00:04:08]} {[%emt 00:00:07]} Rb3 {[%clk 00:00:51]} {[%emt 00:01:45]} 39. Bd5+
{[%clk 00:01:06]} {[%emt 00:03:33]} Kf8 {[%clk 00:01:14]} {[%emt 00:00:07]} 40.
gxf6 {[%clk 00:01:23]} {[%emt 00:00:13]} gxf6 {[%clk 00:01:09]} {[%emt
00:00:35]} 41. Re1 {[%clk 00:21:29]} {[%emt 00:10:23]} Be5 {[%clk 00:30:28]}
{[%emt 00:01:12]} 42. Bh6+ {[%clk 00:21:48]} {[%emt 00:00:11]} Ke7 {[%clk
00:29:18]} {[%emt 00:01:39]} 43. Rxe5+ {[%clk 00:20:15]} {[%emt 00:02:04]} fxe5
{[%clk 00:29:30]} {[%emt 00:00:18]} 44. Bg7 {[%clk 00:19:44]} {[%emt 00:01:01]}
Rb6 {[%clk 00:28:24]} {[%emt 00:01:35]} 45. Be4 {[%clk 00:17:08]} {[%emt
00:03:07]} Ba4 {[%clk 00:21:52]} {[%emt 00:07:02]} 46. Kf2 {[%clk 00:05:39]}
{[%emt 00:12:00]} Bd7 {[%clk 00:16:00]} {[%emt 00:06:21]} 47. Bxe5 {[%clk
00:04:50]} {[%emt 00:01:19]} Rb2+ {[%clk 00:10:59]} {[%emt 00:05:30]} 48. Kg3
{[%clk 00:04:01]} {[%emt 00:01:19]} Rb1 {[%clk 00:11:17]} {[%emt 00:00:13]} 49.
Bc7 {[%clk 00:01:37]} {[%emt 00:02:55]} Rf1 {[%clk 00:09:31]} {[%emt 00:02:14]}
50. Kg4 {[%clk 00:01:20]} {[%emt 00:00:48]} Kf6 {[%clk 00:09:31]} {[%emt
00:00:30]} 51. Bd8+ {[%clk 00:01:41]} {[%emt 00:00:09]} Ke5 {[%clk 00:09:56]}
{[%emt 00:00:04]} 52. Bc7+ {[%clk 00:01:21]} {[%emt 00:00:52]} Kf6 {[%clk
00:10:24]} {[%emt 00:00:01]} 53. Bd8+ {[%clk 00:00:59]} {[%emt 00:00:52]} Ke5
{[%clk 00:10:53]} {[%emt 00:00:01]} 54. Bc7+ {[%clk 00:01:19]} {[%emt
00:00:10]} 1/2-1/2

[Event "Sverigemastarklassen 2025"]
[Site "Uppsala, Sweden"]
[Date "2025.07.06"]
[Round "9.4"]
[White "Galperin, Platon"]
[Black "Hector, Jonny"]
[Result "1/2-1/2"]
[TimeControl "90 min for 40 move + 30 min with an increment of 30 sec starting move 1"]
[WhiteTitle "GM"]
[BlackTitle "GM"]
[WhiteFideId "14165414"]
[BlackFideId "1700090"]
[WhiteElo "2500"]
[BlackElo "2430"]

1. c4 {[%clk 01:30:53]} {[%emt 00:00:06]} e5 {[%clk 01:30:43]} {[%emt
00:00:15]} 2. g3 {[%clk 01:31:20]} {[%emt 00:00:05]} Nf6 {[%clk 01:29:14]}
{[%emt 00:01:58]} 3. Bg2 {[%clk 01:31:43]} {[%emt 00:00:08]} c6 {[%clk
01:28:27]} {[%emt 00:01:16]} 4. d4 {[%clk 01:32:08]} {[%emt 00:00:07]} e4
{[%clk 01:27:34]} {[%emt 00:01:21]} 5. a3 {[%clk 01:32:34]} {[%emt 00:00:05]}
d5 {[%clk 01:26:35]} {[%emt 00:01:27]} 6. Nc3 {[%clk 01:33:02]} {[%emt
00:00:05]} Be6 {[%clk 01:21:43]} {[%emt 00:05:22]} 7. f3 {[%clk 01:28:35]}
{[%emt 00:04:57]} Be7 {[%clk 01:12:18]} {[%emt 00:09:54]} 8. fxe4 {[%clk
01:23:43]} {[%emt 00:05:23]} Nxe4 {[%clk 01:08:25]} {[%emt 00:04:22]} 9. Nh3
{[%clk 01:08:55]} {[%emt 00:15:19]} O-O {[%clk 01:00:45]} {[%emt 00:08:09]} 10.
Nf4 {[%clk 01:02:45]} {[%emt 00:06:40]} Nxc3 {[%clk 00:56:11]} {[%emt
00:05:04]} 11. bxc3 {[%clk 01:02:07]} {[%emt 00:01:09]} dxc4 {[%clk 00:56:30]}
{[%emt 00:00:10]} 12. O-O {[%clk 01:02:07]} {[%emt 00:00:29]} Nd7 {[%clk
00:52:58]} {[%emt 00:04:02]} 13. Rb1 {[%clk 00:51:06]} {[%emt 00:11:32]} Nb6
{[%clk 00:48:12]} {[%emt 00:05:15]} 14. e4 {[%clk 00:51:18]} {[%emt 00:00:18]}
Bc8 {[%clk 00:43:13]} {[%emt 00:05:29]} 15. a4 {[%clk 00:49:50]} {[%emt
00:01:58]} a5 {[%clk 00:41:10]} {[%emt 00:02:33]} 16. Be3 {[%clk 00:45:32]}
{[%emt 00:04:48]} Ra6 {[%clk 00:41:14]} {[%emt 00:00:26]} 17. Qc2 {[%clk
00:38:09]} {[%emt 00:07:53]} Bd6 {[%clk 00:40:35]} {[%emt 00:01:09]} 18. e5
{[%clk 00:21:01]} {[%emt 00:17:38]} Be7 {[%clk 00:37:44]} {[%emt 00:03:20]} 19.
Be4 {[%clk 00:21:28]} {[%emt 00:00:05]} g6 {[%clk 00:35:50]} {[%emt 00:02:23]}
20. h4 {[%clk 00:14:21]} {[%emt 00:07:36]} Nd5 {[%clk 00:28:39]} {[%emt
00:07:41]} 21. Bxd5 {[%clk 00:12:09]} {[%emt 00:02:43]} cxd5 {[%clk 00:29:05]}
{[%emt 00:00:03]} 22. Rb5 {[%clk 00:12:35]} {[%emt 00:00:06]} Bf5 {[%clk
00:27:33]} {[%emt 00:02:00]} 23. Qb2 {[%clk 00:13:00]} {[%emt 00:00:06]} Be4
{[%clk 00:27:32]} {[%emt 00:00:30]} 24. Rxb7 {[%clk 00:13:19]} {[%emt
00:00:12]} g5 {[%clk 00:25:50]} {[%emt 00:02:11]} 25. hxg5 {[%clk 00:08:07]}
{[%emt 00:05:43]} Bxg5 {[%clk 00:24:28]} {[%emt 00:01:51]} 26. Qb5 {[%clk
00:07:15]} {[%emt 00:01:24]} Rh6 {[%clk 00:21:40]} {[%emt 00:03:16]} 27. Rd7
{[%clk 00:07:34]} {[%emt 00:00:12]} Qa8 {[%clk 00:17:19]} {[%emt 00:04:51]} 28.
Rb7 {[%clk 00:02:07]} {[%emt 00:05:58]} Qc8 {[%clk 00:10:42]} {[%emt 00:07:05]}
29. Rd7 {[%clk 00:02:35]} {[%emt 00:00:03]} Rh1+ {[%clk 00:09:50]} {[%emt
00:01:21]} 30. Kf2 {[%clk 00:03:01]} {[%emt 00:00:05]} Rh2+ {[%clk 00:09:46]}
{[%emt 00:00:33]} 31. Ke1 {[%clk 00:01:34]} {[%emt 00:01:57]} Bd3 {[%clk
00:05:26]} {[%emt 00:04:50]} 32. Nxd5 {[%clk 00:01:09]} {[%emt 00:00:56]} Bxe3
{[%clk 00:03:26]} {[%emt 00:02:30]} 33. e6 {[%emt 00:00:08]} Re2+ {[%clk
00:00:54]} {[%emt 00:02:59]} 34. Kd1 {[%clk 00:02:02]} {[%emt 00:00:02]} Rd2+
{[%clk 00:01:14]} {[%emt 00:00:09]} 35. Ke1 {[%clk 00:02:25]} {[%emt 00:00:08]}
Re2+ {[%clk 00:01:12]} {[%emt 00:00:32]} 36. Kd1 {[%clk 00:02:52]} {[%emt
00:00:04]} Rd2+ {[%clk 00:01:32]} {[%emt 00:00:09]} 37. Ke1 {[%clk 00:01:32]}
{[%emt 00:01:50]} Re2+ {[%clk 00:01:05]} {[%emt 00:00:57]} 38. Kd1 {[%clk
00:02:01]} {[%emt 00:00:01]} 1/2-1/2